fUSD/lending_fUSD_20250522
["ID","MTS","AMOUNT","RATE_DAILY","PERIOD"]
[361943752,1747903848484,-420.0,0.00032876,5]
[361943754,1747903848494,-420.0,0.00032876,5]
[361943756,1747903848504,-420.0,0.00032876,5]
[361943758,1747903848515,-420.0,0.00032876,5]
[361943760,1747903848524,-444.08,0.00032876,5]
[361943762,1747903848534,-420.46123465,0.00032876,5]
[361943765,1747903848544,-420.0,0.00032876,5]
[361943766,1747903848553,-420.30249053,0.00032876,5]
[361943768,1747903848563,-759.8,0.00032876,5]
[361943771,1747903848574,-420.0,0.00032876,5]
[361943772,1747903848583,-420.0,0.00032876,5]
[361943774,1747903848592,-420.0,0.00032876,5]
[361943776,1747903848602,-429.05,0.00032876,5]
[361943779,1747903848612,-151.0,0.00032876,7]
[361943781,1747903848622,-420.0,0.00032876,5]
[361943783,1747903848633,-420.0,0.00032876,5]
[361943785,1747903848643,-151.0,0.00032876,7]
[361943787,1747903848652,-420.0,0.00032876,5]
[361943789,1747903848662,-420.0,0.00032876,5]
[361943791,1747903848671,-420.0,0.00032876,5]
[361943793,1747903848681,-151.0,0.00032876,7]
[361943795,1747903848690,-420.0,0.00032876,5]
[361943797,1747903848700,-420.0,0.00032876,5]
[361943799,1747903848708,-151.0,0.00032876,7]
[361943801,1747903848718,-420.0,0.00032876,5]
[361943802,1747903848728,-420.0,0.00032876,5]
[361943804,1747903848738,-420.0,0.00032876,5]
[361943807,1747903848748,-479.08,0.00032876,5]
[361943808,1747903848757,-1897.46,0.00032876,5]
[361943810,1747903848767,-420.0,0.00032876,5]
[361943812,1747903848779,-420.0,0.00032876,5]
[361943814,1747903848790,-797.9,0.00032876,5]
[361943816,1747903848799,-420.0,0.00032876,5]
[361943818,1747903848809,-420.0,0.00032876,5]
[361943821,1747903848820,-940.56,0.00032876,5]
[361943822,1747903848829,-151.0,0.00032876,7]
[361943824,1747903848840,-420.51939758,0.00032876,5]
[361943827,1747903848850,-420.0,0.00032876,5]
[361943828,1747903848860,-420.0,0.00032876,5]
[361943831,1747903848870,-420.0,0.00032876,5]
[361943832,1747903848880,-420.0,0.00032876,5]
[361943834,1747903848889,-420.0,0.00032876,5]
[361943836,1747903848899,-236.89907911,0.00032876,5]
[361943838,1747903848909,-420.0,0.00032876,5]
[361943840,1747903848919,-420.0,0.00032876,5]
[361943842,1747903848929,-420.0,0.00032876,5]
[361943844,1747903848938,-341.96744064,0.00032876,5]
[361943846,1747903848948,-420.0,0.00032876,5]
[361943848,1747903848957,-420.0,0.00032876,5]
[361943851,1747903848967,-420.0,0.00032876,5]
[361943853,1747903848976,-1472.92,0.00032876,5]
[361943855,1747903848986,-151.0,0.00032876,7]
[361943856,1747903848995,-420.0,0.00032876,5]
[361943859,1747903849006,-499.84,0.00032876,5]
[361943861,1747903849015,-420.0,0.00032876,5]
[361943863,1747903849025,-186.42429258,0.00032876,5]
[361943865,1747903849034,-1341.35,0.00032876,5]
[361943867,1747903849043,-1129.64,0.00032876,5]
[361943869,1747903849053,-420.0,0.00032876,5]
[361943870,1747903849062,-468.27851777,0.00032876,5]
[361943872,1747903849072,-420.0,0.00032876,5]
[361943874,1747903849081,-463.88,0.00032876,5]
[361943876,1747903849090,-420.0,0.00032876,5]
[361943878,1747903849099,-420.0,0.00032876,5]
[361943880,1747903849109,-420.0,0.00032876,5]
[361943882,1747903849118,-420.0,0.00032876,5]
[361943884,1747903849128,-424.77453391,0.00032876,5]
[361943886,1747903849139,-464.3,0.00032876,5]
[361943888,1747903849149,-420.0,0.00032876,5]
[361943890,1747903849159,-420.0,0.00032876,5]
[361943892,1747903849168,-420.0,0.00032876,5]
[361943894,1747903849181,-928.71,0.00032876,5]
[361943896,1747903849190,-420.0,0.00032876,5]
[361943898,1747903849201,-151.0,0.00032876,30]
[361943901,1747903849210,-151.0,0.00032876,30]
[361943902,1747903849220,-151.0,0.00032876,30]
[361943904,1747903849229,-151.0,0.00032876,30]
[361943906,1747903849238,-420.0,0.00032876,5]
[361943908,1747903849247,-420.87896209,0.00032876,5]
[361943910,1747903849257,-538.58,0.00032876,5]
[361943912,1747903849267,-420.0,0.00032876,5]
[361943914,1747903849276,-420.0,0.00032876,5]
[361943916,1747903849285,-420.0,0.00032876,5]
[361943918,1747903849295,-420.0,0.00032876,5]
[361943920,1747903849304,-151.0,0.00032876,7]
[361943922,1747903849314,-420.0,0.00032876,5]
[361943924,1747903849323,-420.0,0.00032876,5]
[361943926,1747903849333,-152.709671,0.00032876,7]
[361943928,1747903849342,-420.0,0.00032876,5]
[361943930,1747903849352,-485.82,0.00032876,5]
[361943932,1747903849362,-420.0,0.00032876,5]
[361943934,1747903849371,-669.29,0.00032876,5]
[361943936,1747903849382,-420.61385293,0.00032876,5]
[361943938,1747903849391,-1674.78,0.00032876,5]
[361943940,1747903849400,-420.0,0.00032876,5]
[361943942,1747903849410,-910.29,0.00032876,5]
[361943944,1747903849419,-151.0,0.00032876,7]
[361943946,1747903849429,-421.11981581,0.00032876,5]
[361943948,1747903849438,-1077.45,0.00032876,5]
[361943950,1747903849447,-151.0,0.00032876,7]
[361943952,1747903849456,-588.1,0.00032876,5]
[361943954,1747903849466,-420.0,0.00032876,5]
[361943956,1747903849476,-420.0,0.00032876,5]
[361943958,1747903849485,-420.0,0.00032876,5]
[361943960,1747903849495,-1183.5,0.00032876,5]
[361943962,1747903849505,-420.0,0.00032876,5]
[361943964,1747903849515,-915.86,0.00032876,5]
[361943966,1747903849525,-420.0,0.00032876,5]
[361943968,1747903849534,-508.24,0.00032876,5]
[361943970,1747903849544,-420.0,0.00032876,5]
[361943972,1747903849554,-464.03,0.00032876,5]
[361943974,1747903849564,-714.91,0.00032876,5]
[361943976,1747903849574,-500.0,0.00032876,5]
[361943978,1747903849583,-500.0,0.00032876,5]
[361943979,1747903849593,-506.44399336,0.00032876,5]
[361943980,1747903849602,-420.0,0.00032876,5]
[361943981,1747903849613,-294.556356,0.00032876,7]
[361943982,1747903849623,-420.0,0.00032876,5]
[361943983,1747903849633,-421.08708732,0.00032876,5]
[361943984,1747903849642,-382.61694122,0.00032876,5]
[361943985,1747903849651,-420.0,0.00032876,5]
[361943986,1747903849661,-420.0,0.00032876,5]
[361943987,1747903849670,-421.00855121,0.00032876,5]
[361943988,1747903849680,-420.0,0.00032876,5]
[361943990,1747903849689,-420.0,0.00032876,5]
[361943992,1747903849699,-294.556356,0.00032876,7]
[361943994,1747903849708,-420.73184932,0.00032876,5]
[361943996,1747903849717,-940.25,0.00032876,5]
[361943998,1747903849726,-402.30144059,0.00032876,5]
[361944000,1747903849735,-421.15400073,0.00032876,5]
[361944002,1747903849744,-470.98,0.00032876,5]
[361944004,1747903849754,-420.0,0.00032876,5]
[361944006,1747903849763,-420.0,0.00032876,5]
[361944008,1747903849774,-420.0,0.00032876,5]
[361944010,1747903849783,-420.0,0.00032876,5]
[361944012,1747903849795,-420.0,0.00032876,5]
[361944014,1747903849804,-1103.52,0.00032876,5]
[361944016,1747903849813,-420.0,0.00032876,5]
[361944018,1747903849822,-420.0,0.00032876,5]
[361944019,1747903849833,-555.77,0.00032876,5]
[361944021,1747903849843,-420.0,0.00032876,5]
[361944023,1747903849852,-1671.39,0.00032876,5]
[361944025,1747903849862,-420.0,0.00032876,5]
[361944027,1747903849871,-587.91,0.00032876,5]
[361944029,1747903849883,-421.19171575,0.00032876,5]
[361944031,1747903849893,-420.0,0.00032876,5]
[361944033,1747903849902,-420.0,0.00032876,5]
[361944036,1747903849912,-420.81191177,0.00032876,5]
[361944038,1747903849921,-1195.68,0.00032876,5]
[361944040,1747903849931,-420.0,0.00032876,5]
[361944042,1747903849941,-420.0,0.00032876,5]
[361944044,1747903849950,-504.60685933,0.00032876,5]
[361944046,1747903849960,-583.98,0.00032876,5]
[361944047,1747903849969,-421.20458606,0.00032876,5]
[361944049,1747903849979,-500.0,0.00032876,2]
[361944051,1747903849989,-500.0,0.00032876,2]
[361944053,1747903849999,-500.0,0.00032876,2]
[361944055,1747903850008,-500.0,0.00032876,2]
[361944057,1747903850018,-420.0,0.00032876,5]
[361944059,1747903850027,-500.0,0.00032876,2]
[361944061,1747903850037,-500.0,0.00032876,2]
[361944063,1747903850046,-422.78197308,0.00032876,2]
[361944065,1747903850056,-421.0768418,0.00032876,5]
[361944067,1747903850065,-420.0,0.00032876,5]
[361944069,1747903850075,-420.88650638,0.00032876,5]
[361944071,1747903850084,-1632.44,0.00032876,5]
[361944073,1747903850093,-420.0,0.00032876,5]
[361944075,1747903850103,-913.53,0.00032876,5]
[361944077,1747903850112,-420.0,0.00032876,5]
[361944079,1747903850121,-420.0,0.00032876,5]
[361944081,1747903850131,-420.0,0.00032876,5]
[361944083,1747903850140,-420.0,0.00032876,5]
[361944085,1747903850150,-420.0,0.00032876,5]
[361944087,1747903850159,-342.8475883,0.00032876,5]
[361944089,1747903850169,-420.0,0.00032876,5]
[361944091,1747903850178,-748.81,0.00032876,5]
[361944093,1747903850187,-420.84431783,0.00032876,5]
[361944095,1747903850196,-901.77,0.00032876,5]
[361944097,1747903850205,-1007.14,0.00032876,5]
[361944099,1747903850215,-420.0,0.00032876,5]
[361944101,1747903850224,-420.0,0.00032876,5]
[361944103,1747903850234,-420.0,0.00032876,5]
[361944105,1747903850243,-766.05,0.00032876,5]
[361944107,1747903850253,-569.0,0.00032876,5]
[361944109,1747903850262,-420.0,0.00032876,5]
[361944111,1747903850272,-420.0,0.00032876,5]
[361944113,1747903850281,-421.46096577,0.00032876,5]
[361944115,1747903850290,-420.0,0.00032876,5]
[361944116,1747903850299,-420.0,0.00032876,5]
[361944118,1747903850308,-319.11246098,0.00032876,5]
[361944120,1747903850318,-420.0,0.00032876,5]
[361944122,1747903850327,-420.0,0.00032876,5]
[361944124,1747903850336,-561.92,0.00032876,5]
[361944126,1747903850345,-420.0,0.00032876,5]
[361944128,1747903850355,-651.58,0.00032876,5]
[361944130,1747903850364,-420.0,0.00032876,5]
[361944132,1747903850373,-420.0,0.00032876,5]
[361944134,1747903850384,-511.26905141,0.00032876,5]
[361944136,1747903850393,-420.0,0.00032876,5]
[361944138,1747903850403,-420.0,0.00032876,5]
[361944140,1747903850412,-274.79313601,0.00032876,5]
[361944142,1747903850422,-420.0,0.00032876,5]
[361944144,1747903850431,-420.0,0.00032876,5]
[361944146,1747903850441,-568.73,0.00032876,5]
[361944148,1747903850451,-420.0,0.00032876,5]
[361944150,1747903850460,-434.44698451,0.00032876,5]
[361944152,1747903850469,-420.0,0.00032876,5]
[361944154,1747903850479,-420.0,0.00032876,5]
[361944156,1747903850488,-151.0,0.00032876,7]
[361944158,1747903850498,-420.0,0.00032876,5]
[361944160,1747903850507,-420.0,0.00032876,5]
[361944162,1747903850517,-420.0,0.00032876,5]
[361944164,1747903850526,-532.32,0.00032876,5]
[361944166,1747903850536,-750.79,0.00032876,5]
[361944168,1747903850546,-420.0,0.00032876,5]
[361944170,1747903850555,-420.0,0.00032876,5]
[361944172,1747903850565,-420.0,0.00032876,5]
[361944174,1747903850574,-574.84,0.00032876,5]
[361944176,1747903850584,-420.0,0.00032876,5]
[361944178,1747903850593,-420.0,0.00032876,5]
[361944180,1747903850602,-420.0,0.00032876,5]
[361944182,1747903850611,-420.0,0.00032876,5]
[361944184,1747903850620,-420.0,0.00032876,5]
[361944186,1747903850631,-941.92,0.00032876,5]
[361944188,1747903850640,-778.37,0.00032876,5]
[361944190,1747903850650,-507.37,0.00032876,5]
[361944192,1747903850659,-500.0,0.00032876,5]
[361944194,1747903850668,-420.0,0.00032876,5]
[361944196,1747903850677,-420.0,0.00032876,5]
[361944198,1747903850687,-1000.0,0.00032876,30]
[361944200,1747903850696,-420.0,0.00032876,5]
[361944202,1747903850706,-206.99592864,0.00032876,5]
[361944204,1747903850715,-403.13518903,0.00032876,5]
[361944206,1747903850724,-420.0,0.00032876,5]
[361944208,1747903850734,-481.16,0.00032876,5]
[361944210,1747903850743,-1215.06,0.00032876,5]
[361944212,1747903850753,-531.14,0.00032876,5]
[361944214,1747903850762,-874.92,0.00032876,5]
[361944216,1747903850774,-420.0,0.00032876,5]
[361944218,1747903850784,-420.0,0.00032876,5]
[361944220,1747903850793,-420.0,0.00032876,5]
[361944222,1747903850803,-420.0,0.00032876,5]
[361944224,1747903850812,-461.67,0.00032876,5]
[361944225,1747903850822,-2818.08,0.00032876,5]
[361944227,1747903850831,-420.0,0.00032876,5]
[361944230,1747903850841,-420.0,0.00032876,5]
[361944232,1747903850851,-420.0,0.00032876,5]
[361944233,1747903850860,-438.70561956,0.00032876,5]
[361944235,1747903850871,-154.022945,0.00032876,7]
[361944238,1747903850881,-151.0,0.00032876,7]
[361944239,1747903850890,-420.0,0.00032876,5]
[361944241,1747903850900,-420.0,0.00032876,5]
[361944243,1747903850910,-420.0,0.00032876,5]
[361944245,1747903850919,-420.0,0.00032876,5]
[361944247,1747903850928,-420.0,0.00032876,5]
[361944249,1747903850938,-420.0,0.00032876,5]
[361944251,1747903850948,-420.0,0.00032876,5]
[361944253,1747903850957,-420.0,0.00032876,5]
[361944255,1747903850967,-420.0,0.00032876,5]
[361944257,1747903850975,-420.0,0.00032876,5]
[361944259,1747903850985,-1317.88,0.00032876,5]
[361944261,1747903850995,-543.59608116,0.00032876,5]
[361944263,1747903851005,-862.04,0.00032876,5]
[361944265,1747903851014,-151.0,0.00032876,7]
[361944267,1747903851024,-420.0,0.00032876,5]
[361944269,1747903851033,-420.98975065,0.00032876,5]
[361944271,1747903851043,-420.0,0.00032876,5]
[361944273,1747903851052,-420.0,0.00032876,5]
[361944275,1747903851062,-513.52671288,0.00032876,5]
[361944277,1747903851071,-420.0,0.00032876,5]
[361944279,1747903851081,-234.31594,0.00032876,7]
[361944281,1747903851090,-1012.57,0.00032876,5]
[361944283,1747903851099,-420.0,0.00032876,5]
[361944285,1747903851109,-421.40144308,0.00032876,5]
[361944287,1747903851119,-474.61,0.00032876,5]
[361944288,1747903851129,-421.74302157,0.00032876,5]
[361944290,1747903851138,-420.0,0.00032876,5]
[361944292,1747903851148,-420.0,0.00032876,5]
[361944294,1747903851158,-420.0,0.00032876,5]
[361944296,1747903851167,-785.17,0.00032876,5]
[361944298,1747903851177,-420.0,0.00032876,5]
[361944300,1747903851188,-420.0,0.00032876,5]
[361944302,1747903851197,-420.0,0.00032876,5]
[361944304,1747903851207,-420.0,0.00032876,5]
[361944306,1747903851216,-462.19,0.00032876,5]
[361944308,1747903851226,-420.0,0.00032876,5]
[361944310,1747903851235,-1196.91,0.00032876,5]
[361944312,1747903851245,-991.81,0.00032876,5]
[361944313,1747903851255,-420.0,0.00032876,5]
[361944314,1747903851265,-420.0,0.00032876,5]
[361944315,1747903851275,-709.73,0.00032876,5]
[361944316,1747903851284,-420.0,0.00032876,5]
[361944317,1747903851294,-420.0,0.00032876,5]
[361944318,1747903851305,-420.0,0.00032876,5]
[361944319,1747903851314,-420.0,0.00032876,5]
[361944320,1747903851324,-420.0,0.00032876,5]
[361944321,1747903851335,-420.0,0.00032876,5]
[361944323,1747903851344,-421.60667716,0.00032876,5]
[361944325,1747903851353,-1586.77,0.00032876,5]
[361944327,1747903851363,-1667.62,0.00032876,5]
[361944329,1747903851371,-420.0,0.00032876,5]
[361944331,1747903851381,-421.10432984,0.00032876,5]
[361944333,1747903851390,-420.0,0.00032876,5]
[361944335,1747903851399,-420.0,0.00032876,5]
[361944337,1747903851409,-1229.43,0.00032876,5]
[361944339,1747903851419,-430.31,0.00032876,5]
[361944341,1747903851428,-420.0,0.00032876,5]
[361944343,1747903851438,-421.75860505,0.00032876,5]
[361944345,1747903851448,-720.81,0.00032876,5]
[361944347,1747903851458,-420.0,0.00032876,5]
[361944349,1747903851467,-420.0,0.00032876,5]
[361944351,1747903851476,-420.0,0.00032876,5]
[361944353,1747903851486,-420.0,0.00032876,5]
[361944355,1747903851495,-916.46,0.00032876,5]
[361944356,1747903851505,-420.0,0.00032876,5]
[361944358,1747903851515,-420.0,0.00032876,5]
[361944361,1747903851525,-432.32638602,0.00032876,5]
[361944363,1747903851535,-420.0,0.00032876,5]
[361944365,1747903851544,-753.48,0.00032876,5]
[361944366,1747903851553,-1522.88,0.00032876,5]
[361944368,1747903851563,-1317.02,0.00032876,5]
[361944370,1747903851572,-895.65,0.00032876,5]
[361944372,1747903851581,-420.0,0.00032876,5]
[361944374,1747903851591,-422.11128658,0.00032876,5]
[361944376,1747903851600,-920.27,0.00032876,5]
[361944378,1747903851610,-173.31830407,0.00032876,5]
[361944380,1747903851619,-420.0,0.00032876,5]
[361944382,1747903851628,-421.61871411,0.00032876,5]
[361944384,1747903851638,-531.55481167,0.00032876,5]
[361944385,1747903851647,-420.0,0.00032876,5]
[361944386,1747903851655,-720.91,0.00032876,5]
[361944387,1747903851665,-420.0,0.00032876,5]
[361944388,1747903851675,-421.09452867,0.00032876,5]
[361944389,1747903851684,-1210.29,0.00032876,5]
[361944390,1747903851694,-420.0,0.00032876,5]
[361944391,1747903851704,-420.0,0.00032876,5]
[361944392,1747903851714,-420.0,0.00032876,5]
[361944393,1747903851724,-828.05,0.00032876,5]
[361944394,1747903851733,-420.0,0.00032876,5]
[361944395,1747903851743,-799.25,0.00032876,5]
[361944396,1747903851754,-422.48236004,0.00032876,5]
[361944398,1747903851764,-647.48,0.00032876,5]
[361944399,1747903851774,-420.0,0.00032876,5]
[361944400,1747903851786,-420.0,0.00032876,5]
[361944401,1747903851797,-420.0,0.00032876,5]
[361944402,1747903851806,-610.77,0.00032876,5]
[361944403,1747903851818,-1460.51,0.00032876,5]
[361944404,1747903851829,-420.0,0.00032876,5]
[361944405,1747903851838,-420.0,0.00032876,5]
[361944406,1747903851847,-542.28,0.00032876,5]
[361944407,1747903851857,-1277.02,0.00032876,5]
[361944408,1747903851869,-1087.56,0.00032876,5]
[361944409,1747903851879,-422.45996911,0.00032876,5]
[361944410,1747903851888,-420.0,0.00032876,5]
[361944411,1747903851897,-708.81,0.00032876,5]
[361944412,1747903851907,-420.0,0.00032876,5]
[361944414,1747903852074,-392.06643874,0.00032876,5]
[361944415,1747903852084,-420.0,0.00032876,5]
[361944416,1747903852094,-1579.05,0.00032876,5]
[361944417,1747903852104,-1250.33,0.00032876,5]
[361944418,1747903852113,-420.0,0.00032876,5]
[361944420,1747903852123,-199.58820274,0.00032876,5]
[361944429,1747903852786,-220.41179726,0.00032876,5]
[361944430,1747903852795,-422.18324985,0.00032876,5]
[361944431,1747903852805,-420.0,0.00032876,5]
[361944432,1747903852815,-538.29,0.00032876,5]
[361944433,1747903852824,-471.24,0.00032876,5]
[361944434,1747903852833,-420.0,0.00032876,5]
[361944435,1747903852843,-152.109461,0.00032876,7]
[361944436,1747903852853,-1140.91,0.00032876,5]
[361944437,1747903852865,-420.0,0.00032876,5]
[361944438,1747903852875,-597.34,0.00032876,5]
[361944439,1747903852886,-420.69924524,0.00032876,5]
[361944440,1747903852896,-1608.01,0.00032876,5]
[361944441,1747903852907,-1245.42,0.00032876,5]
[361944442,1747903852917,-1214.63,0.00032876,5]
[361944443,1747903852927,-1352.58,0.00032876,5]
[361944444,1747903852937,-429.63,0.00032876,5]
[361944445,1747903852947,-420.0,0.00032876,5]
[361944446,1747903852958,-420.0,0.00032876,5]
[361944447,1747903852968,-420.0,0.00032876,5]
[361944448,1747903852980,-2169.49,0.00032876,5]
[361944449,1747903852990,-421.75590579,0.00032876,5]
[361944450,1747903853001,-420.0,0.00032876,5]
[361944451,1747903853010,-484.05,0.00032876,5]
[361944452,1747903853019,-420.0,0.00032876,5]
[361944453,1747903853029,-768.48,0.00032876,5]
[361944454,1747903853039,-420.0,0.00032876,5]
[361944455,1747903853049,-151.0,0.00032876,7]
[361944456,1747903853059,-420.0,0.00032876,5]
[361944457,1747903853069,-421.88852498,0.00032876,5]
[361944458,1747903853079,-420.88793422,0.00032876,5]
[361944459,1747903853089,-429.32,0.00032876,5]
[361944460,1747903853099,-420.0,0.00032876,5]
[361944461,1747903853109,-930.07,0.00032876,5]
[361944462,1747903853118,-420.0,0.00032876,5]
[361944463,1747903853128,-521.0,0.00032876,5]
[361944464,1747903853140,-968.18,0.00032876,5]
[361944465,1747903853150,-420.0,0.00032876,5]
[361944466,1747903853160,-1253.7,0.00032876,5]
[361944467,1747903853171,-420.0,0.00032876,5]
[361944468,1747903853180,-1502.28,0.00032876,5]
[361944469,1747903853190,-751.89,0.00032876,5]
[361944470,1747903853201,-420.0,0.00032876,5]
[361944471,1747903853211,-420.0,0.00032876,5]
[361944472,1747903853221,-496.87,0.00032876,5]
[361944473,1747903853231,-420.0,0.00032876,5]
[361944474,1747903853241,-667.41,0.00032876,5]
[361944475,1747903853251,-420.0,0.00032876,5]
[361944476,1747903853261,-508.24,0.00032876,5]
[361944477,1747903853271,-1078.98,0.00032876,5]
[361944478,1747903853281,-420.0,0.00032876,5]
[361944479,1747903853291,-1078.98,0.00032876,5]
[361944480,1747903853301,-1078.98,0.00032876,5]
[361944481,1747903853310,-1078.98,0.00032876,5]
[361944482,1747903853319,-1078.98,0.00032876,5]
[361944483,1747903853333,-1078.98,0.00032876,5]
[361944484,1747903853343,-1078.98,0.00032876,5]
[361944485,1747903853353,-420.0,0.00032876,5]
[361944486,1747903853363,-1078.98,0.00032876,5]
[361944487,1747903853372,-1078.98,0.00032876,5]
[361944488,1747903853384,-1078.98,0.00032876,5]
[361944489,1747903853394,-1078.98,0.00032876,5]
[361944490,1747903853404,-1059.51,0.00032876,5]
[361944491,1747903853413,-1078.98,0.00032876,5]
[361944492,1747903853423,-1078.98,0.00032876,5]
[361944493,1747903853433,-1078.98,0.00032876,5]
[361944494,1747903853443,-1078.98,0.00032876,5]
[361944495,1747903853453,-1078.98,0.00032876,5]
[361944496,1747903853463,-1428.55,0.00032876,5]
[361944497,1747903853472,-1078.98,0.00032876,5]
[361944498,1747903853482,-424.12343412,0.00032876,5]
[361944499,1747903853492,-1078.98,0.00032876,5]
[361944500,1747903853502,-1078.98,0.00032876,5]
[361944501,1747903853512,-1078.98,0.00032876,5]
[361944502,1747903853522,-1078.98,0.00032876,5]
[361944503,1747903853532,-420.0,0.00032876,5]
[361944504,1747903853541,-1078.98,0.00032876,5]
[361944505,1747903853551,-1078.98,0.00032876,5]
[361944506,1747903853561,-1079.18753,0.00032876,5]
[361944507,1747903853571,-502.22,0.00032876,5]
[361944508,1747903853580,-420.0,0.00032876,5]
[361944509,1747903853591,-421.40624821,0.00032876,5]
[361944510,1747903853601,-1007.61,0.00032876,5]
[361944511,1747903853611,-420.0,0.00032876,5]
[361944512,1747903854033,-551.83,0.00032876,5]
[361944513,1747903854043,-997.96,0.00032876,5]
[361944514,1747903854053,-406.08698931,0.00032876,5]
[361944515,1747903854063,-420.0,0.00032876,5]
[361944516,1747903854073,-151.0,0.00032876,7]
[361944517,1747903854083,-420.0,0.00032876,5]
[361944518,1747903854092,-420.0,0.00032876,5]
[361944519,1747903854102,-151.0,0.00032876,7]
[361944520,1747903854112,-420.51880048,0.00032876,5]
[361944521,1747903854122,-989.28,0.00032876,5]
[361944522,1747903854133,-1536.47,0.00032876,5]
[361944523,1747903854143,-420.0,0.00032876,5]
[361944524,1747903854153,-420.0,0.00032876,5]
[361944525,1747903854162,-1113.89,0.00032876,5]
[361944526,1747903854172,-423.00915774,0.00032876,5]
[361944527,1747903854182,-453.77,0.00032876,5]
[361944528,1747903854193,-456.69,0.00032876,5]
[361944529,1747903854203,-420.0,0.00032876,5]
[361944530,1747903854213,-420.0,0.00032876,5]
[361944531,1747903854222,-420.7394882,0.00032876,5]
[361944532,1747903854232,-551.77,0.00032876,5]
[361944533,1747903854241,-420.0,0.00032876,5]
[361944534,1747903854251,-420.0,0.00032876,5]
[361944535,1747903854262,-889.32,0.00032876,5]
[361944536,1747903854271,-718.0,0.00032876,5]
[361944537,1747903854281,-420.0,0.00032876,5]
[361944538,1747903854291,-1001.78,0.00032876,5]
[361944539,1747903854301,-544.89,0.00032876,5]
[361944540,1747903854311,-420.0,0.00032876,5]
[361944541,1747903854321,-566.41,0.00032876,5]
[361944542,1747903854331,-484.30190254,0.00032876,5]
[361944543,1747903854341,-716.43,0.00032876,5]
[361944544,1747903854350,-152.27003,0.00032876,7]
[361944545,1747903854359,-420.0,0.00032876,5]
[361944546,1747903854369,-420.0,0.00032876,5]
[361944547,1747903854378,-420.0,0.00032876,5]
[361944548,1747903854388,-420.0,0.00032876,5]
[361944549,1747903854397,-420.0,0.00032876,5]
[361944550,1747903854407,-649.98,0.00032876,5]
[361944551,1747903854417,-1248.22,0.00032876,5]
[361944552,1747903854426,-422.41868996,0.00032876,5]
[361944553,1747903854436,-1308.06,0.00032876,5]
[361944554,1747903854445,-1167.51,0.00032876,5]
[361944555,1747903854454,-420.0,0.00032876,5]
[361944556,1747903854463,-1270.64,0.00032876,5]
[361944557,1747903854473,-582.61,0.00032876,5]
[361944558,1747903854483,-186.04280576,0.00032876,5]
[361944559,1747903854492,-420.0,0.00032876,5]
[361944560,1747903854501,-1396.92,0.00032876,5]
[361944561,1747903854510,-420.0,0.00032876,5]
[361944562,1747903854519,-707.67,0.00032876,5]
[361944563,1747903854529,-988.17,0.00032876,5]
[361944564,1747903854538,-420.0,0.00032876,5]
[361944565,1747903854548,-420.0,0.00032876,5]
[361944566,1747903854557,-1497.41,0.00032876,5]